bitfinex/quotes_SOLUSD_20240612
["timestamp","ask_amount","ask_price","bid_price","bid_amount"]
[1718215584396,27.46,157.2,156.99,9.4272]
[1718215584596,27.46,157.2,156.98,120.0]
[1718215584597,27.46,157.2,157.03,4.7121]
[1718215584776,2.3539,157.18,157.04,2.356]
[1718215584975,27.46,157.24,157.08,2.3554]
[1718215585188,27.46,157.24,157.04,100.0]
[1718215585389,29.52,157.28,157.06,111.7785]
[1718215585591,38.9301,157.28,157.07,20.34]
[1718215585801,9.4118,157.25,157.05,100.0]
[1718215585984,29.52,157.28,157.06,20.68]
[1718215586188,31.8726,157.28,157.08,107.2362]
[1718215586396,2.3526,157.27,157.1,4.8803]
[1718215586605,29.52,157.28,157.11,4.8798]
[1718215586901,2.3534,157.22,157.08,2.3553]
[1718215587090,2.3534,157.22,156.99,104.7134]
[1718215587091,19.1,157.22,156.99,104.7134]
[1718215587304,19.1,157.18,156.97,27.46]
[1718215587506,2.3543,157.16,157.02,2.3562]
[1718215587690,19.1,157.18,156.98,4.7139]
[1718215587890,36.8752,157.2,156.99,100.0]
[1718215587891,0.34,157.17,156.99,100.0]
[1718215588105,0.34,157.16,156.98,11.0119]
[1718215588309,19.44,157.15,156.96,100.0]
[1718215588630,2.3551,157.11,156.97,2.3571]
[1718215588810,0.34,157.1,156.92,4.7157]
[1718215589115,23.9815,157.07,156.92,2.547897]
[1718215589320,19.27,157.04,156.92,2.547897]
[1718215589509,19.27,157.0,156.8,100.0]
[1718215589721,0.17,157.0,156.82,100.0]
[1718215589940,27.8,157.03,156.88,2.3584]
[1718215589941,0.17,157.02,156.88,2.3584]
[1718215590217,0.17,157.02,156.81,19.27]
[1718215590218,2.357,156.98,156.81,19.27]
[1718215590427,2.357,156.98,156.79,104.7196]
[1718215590428,2.06,156.97,156.84,2.3589]
[1718215590606,0.17,156.96,156.78,6.298]
[1718215590801,0.68,156.96,156.78,6.298]
[1718215591042,0.68,156.96,156.74,6.298]
[1718215591199,2.5282,156.9,156.75,2.3603]
[1718215591397,27.46,156.94,156.76,2.550565]
[1718215591398,0.17,156.93,156.76,2.550565]
[1718215591629,0.17,156.9,156.76,2.550565]
[1718215591919,0.17,156.9,156.74,106.298]
[1718215592124,0.17,156.93,156.75,100.0]
[1718215592292,0.17,156.92,156.75,2.550362]
[1718215592489,0.51,156.92,156.75,2.550362]
[1718215592707,0.17,156.91,156.75,2.550362]
[1718215592923,0.17,156.9,156.74,6.298]
[1718215593225,0.17,156.93,156.75,4.7208]
[1718215593454,0.68,156.93,156.78,2.3598]
[1718215593733,2.3588,156.86,156.74,6.298]
[1718215593949,0.17,156.89,156.74,6.298]
[1718215594225,0.17,156.89,156.68,100.0]
[1718215594226,0.17,156.85,156.71,2.361]
[1718215594423,0.17,156.85,156.68,100.0]
[1718215594424,0.17,156.86,156.68,100.0]
[1718215594625,0.17,156.89,156.72,100.0]
[1718215594791,2.5285,156.88,156.73,2.3606]
[1718215594991,0.17,156.86,156.67,104.723]
[1718215595226,2.3592,156.83,156.68,2.3614]
[1718215595436,56.0752,156.93,156.72,100.0]
[1718215595634,0.17,156.92,156.73,100.0]
[1718215595927,6.3596,156.93,156.77,100.0]
[1718215596112,6.3596,156.93,156.77,4.72]
[1718215596316,2.06,156.92,156.83,2.3592]
[1718215596633,2.06,156.92,156.77,100.0]
[1718215596806,2.06,156.92,156.78,20.51]
[1718215596999,2.06,156.92,156.78,20.0]
[1718215597196,2.06,156.92,156.74,100.0]
[1718215597197,2.06,156.92,156.79,2.3597]
[1718215597417,2.06,156.92,156.77,20.51]
[1718215597622,2.06,156.92,156.79,2.3598]
[1718215597923,2.06,156.92,156.71,104.722]
[1718215598122,2.528,156.91,156.77,2.3601]
[1718215598296,2.06,156.92,156.73,20.0]
[1718215598494,6.3596,156.93,156.79,2.3598]
[1718215598495,3.12545802,156.93,156.79,2.3598]
[1718215598696,27.46,156.97,156.8,21.42434777]
[1718215598929,27.46,156.97,156.78,6.298]
[1718215598930,0.17,156.96,156.81,21.42434777]
[1718215599129,2.3581,156.91,156.82,12.24267724]
[1718215599416,16.5021,156.95,156.8,6.298]
[1718215599417,2.3579,156.92,156.83,21.42434777]
[1718215599616,0.17,156.96,156.77,2.36]
[1718215599617,2.358,156.91,156.77,2.36]
[1718215600196,6.44636157,156.94,156.77,100.0]
[1718215600393,0.51,156.95,156.81,2.3594]
[1718215600626,0.17,156.96,156.79,100.17]
[1718215600829,21.58754621,156.98,156.8,20.34]
[1718215601033,0.17,156.97,156.8,20.0]
[1718215601394,21.58754621,156.98,156.83,2.3592]
[1718215601594,21.58754621,156.98,156.85,2.3589]
[1718215601804,15.1395,156.98,156.85,2.3589]
[1718215602098,15.1395,156.98,156.81,4.7188]
[1718215602309,15.1395,156.98,156.82,20.0]
[1718215602525,2.3574,156.96,156.83,2.3592]
[1718215602827,7.068,157.05,156.82,29.4372]
[1718215603128,11.1886,157.03,156.82,20.0]
[1718215603429,19.1,157.01,156.84,0.17]
[1718215603637,2.3571,156.98,156.83,0.51]
[1718215603799,2.357,156.98,156.83,0.51]
[1718215603998,22.34761439,157.03,156.85,100.0]
[1718215604336,12.92231439,157.03,156.86,20.0]
[1718215604636,2.3573,156.96,156.83,2.5292]
[1718215604843,2.3573,156.96,156.8,32.1792]
[1718215604844,19.1,156.96,156.78,6.298]
[1718215604997,19.1,156.96,156.79,7.0795]
[1718215605326,16.4961,157.01,156.81,4.7188]
[1718215605529,23.8143,156.97,156.78,6.298]
[1718215605721,27.46,157.01,156.83,4.7184]
[1718215605934,12.92231439,157.03,156.85,109.4354]
[1718215606099,12.92231439,157.03,156.85,4.7177]
[1718215606304,12.92231439,157.03,156.92,2.3578]
[1718215606500,36.8798,157.12,156.89,100.0]
[1718215606750,27.46,157.12,156.91,100.17]
[1718215607048,4.7118,157.05,156.89,0.17]
[1718215607333,50.35529527,157.08,156.92,2.3578]
[1718215607644,50.35529527,157.08,156.9,0.17]
[1718215607928,50.35529527,157.08,156.91,9.4316]
[1718215608226,27.46,157.12,156.93,100.17]
[1718215608530,19.1,157.11,156.94,20.17]
[1718215608828,4.7103,157.1,156.94,20.17]
[1718215609011,25.54085329,157.11,156.95,20.0]
[1718215609213,6.44085329,157.11,156.95,0.34]
[1718215609407,2.3554,157.08,156.95,22.3573]
[1718215609602,4.7097,157.12,156.96,0.17]
[1718215609802,4.7097,157.12,156.95,20.0]
[1718215609803,19.85530504,157.13,156.95,20.0]
[1718215610003,2.3552,157.1,156.97,2.3571]
[1718215610221,12.79070504,157.13,156.97,2.357]
[1718215610521,2.3554,157.09,156.95,22.3573]
[1718215610699,2.3555,157.08,156.95,20.0]
[1718215610899,12.79070504,157.13,156.97,4.7141]
[1718215611104,12.79070504,157.13,156.98,2.3569]
[1718215611304,19.85500504,157.13,156.96,0.51]
[1718215611521,2.356,157.05,156.94,0.17]
[1718215611702,7.0658,157.1,156.92,100.17]
[1718215612022,2.3555,157.08,156.95,2.3574]
[1718215612225,2.3554,157.09,156.96,2.3572]
[1718215612402,2.3555,157.08,156.95,2.3573]
[1718215612602,7.0656,157.1,156.92,100.17]
[1718215612911,2.3555,157.08,156.95,2.3573]
[1718215613122,2.3553,157.09,156.96,2.3572]
[1718215613306,24.3201,157.11,156.95,2.3573]
[1718215613307,0.17,157.1,156.95,2.3573]
[1718215613513,0.17,157.05,156.91,12.790705]
[1718215613729,19.61,157.05,156.85,7.0765]
[1718215614032,9.4264,157.01,156.84,19.1]
[1718215614247,2.357,156.98,156.86,2.3587]
[1718215614408,14.1397,157.01,156.86,11.7938]
[1718215614409,0.17,157.01,156.86,11.7938]
[1718215614759,0.34,157.04,156.87,4.7171]
[1718215614909,0.34,157.04,156.85,100.0]
[1718215614910,0.17,157.03,156.85,100.0]
[1718215615117,2.3567,157.0,156.88,2.3584]
[1718215615314,2.3564,157.02,156.89,2.3583]
[1718215615845,0.17,157.07,156.92,2.3578]
[1718215616016,0.17,157.07,156.89,11.7913]
[1718215616017,2.3561,157.04,156.91,2.3579]
[1718215616216,2.3562,157.03,156.91,2.3579]
[1718215616413,2.3562,157.03,156.9,22.3581]
[1718215616634,19.1,157.06,156.9,20.0]
[1718215616941,2.3561,157.04,156.91,2.3579]
[1718215617123,2.3562,157.04,156.91,2.3579]
[1718215617317,4.7105,157.1,156.95,2.3573]
[1718215617633,2.3557,157.07,156.93,20.0]
[1718215617838,9.4217,157.09,156.93,20.0]
[1718215618043,2.3558,157.06,156.93,2.3576]
[1718215618251,19.1,157.11,156.92,20.0]
[1718215618412,27.46,157.12,156.91,0.17]
[1718215618413,16.4896,157.07,156.91,0.17]
[1718215618640,2.3563,157.03,156.9,22.8681]
[1718215618833,2.3559,157.05,156.93,2.3577]
[1718215619143,2.3557,157.07,156.95,2.3574]
[1718215619451,4.712,157.05,156.9,100.0]
[1718215619789,16.4937,157.03,156.87,6.298]
[1718215619945,2.3565,157.01,156.89,2.3583]
[1718215620262,2.3565,157.01,156.87,4.7171]
[1718215620488,0.17,157.0,156.82,25.489486]
[1718215620782,2.3579,156.92,156.79,2.3597]
[1718215620939,27.46,156.99,156.78,16.4915]
[1718215620940,2.3582,156.9,156.78,16.4915]
[1718215621133,2.3574,156.95,156.79,100.0]
[1718215621338,0.17,156.98,156.79,4.7195]
[1718215621544,0.68,156.98,156.8,100.0]
[1718215621837,0.17,156.98,156.82,9.437]
[1718215622038,0.68,156.99,156.8,100.0]
[1718215622259,4.7148,156.96,156.77,100.0]
[1718215622436,4.7148,156.96,156.75,31.799255]
[1718215622437,2.3574,156.95,156.8,2.3595]
[1718215622638,2.3574,156.95,156.77,100.0]
[1718215622842,0.17,156.96,156.82,2.3593]
[1718215623150,2.3577,156.93,156.79,2.3598]
[1718215623351,0.34,156.96,156.78,9.4287]
[1718215623555,0.34,156.96,156.77,100.0]
[1718215623748,13.5186396,157.0,156.75,11.0187]
[1718215623749,6.4485396,157.0,156.85,2.3589]
[1718215623938,6.4485396,157.0,156.77,147.9187]
[1718215624139,6.4485396,157.0,156.85,104.7176]
[1718215624385,2.3561,157.04,156.9,2.3581]
[1718215624665,27.46,157.08,156.91,2.3578]
[1718215624666,33.88905598,157.08,156.91,2.3578]
[1718215624866,2.3564,157.02,156.88,20.17]
[1718215625057,2.3561,157.04,156.89,100.51]
[1718215625258,2.357,156.98,156.89,0.34]
[1718215625451,26.1685,157.04,156.85,0.17]
[1718215625660,11.14025598,157.08,156.89,100.0]
[1718215625849,11.7782,157.07,156.9,20.0]
[1718215626049,6.42905598,157.08,156.85,147.97]
[1718215626050,27.46,157.06,156.85,20.51]
[1718215626257,7.0687,157.03,156.85,20.17]
[1718215626469,7.0687,157.03,156.83,20.0]
[1718215626470,2.3571,156.97,156.83,20.0]
[1718215626669,19.1,157.0,156.79,104.7195]
[1718215626873,19.1,157.0,156.82,2.3593]
[1718215626874,2.3573,156.96,156.82,2.3593]
[1718215627073,0.17,156.96,156.79,100.0]
[1718215627376,4.714,156.98,156.81,100.0]
[1718215627548,0.34,156.97,156.79,100.0]
[1718215627750,0.17,156.96,156.77,104.7202]
[1718215627969,0.17,156.97,156.78,100.0]
[1718215628154,0.34,156.97,156.78,100.0]
[1718215628350,2.3574,156.95,156.78,100.0]
[1718215628600,2.3578,156.93,156.79,2.3598]
[1718215628751,19.27,156.95,156.75,106.374]
[1718215628952,2.3577,156.94,156.8,2.3596]
[1718215629170,2.3576,156.94,156.8,2.3596]
[1718215629372,27.46,156.98,156.78,100.0]
[1718215629582,2.3579,156.92,156.77,100.0]
[1718215629750,0.17,156.95,156.79,100.0]
[1718215629952,4.7152,156.94,156.77,0.17]
[1718215630149,0.17,156.92,156.75,6.374]
[1718215630388,0.17,156.92,156.69,102.3613]
[1718215630389,2.3592,156.83,156.69,102.3613]
[1718215630672,19.1,156.89,156.71,9.4297]
[1718215630878,19.78,156.88,156.74,2.3604]
[1718215631063,4.7157,156.93,156.74,100.0]
[1718215631248,27.46,156.95,156.72,100.0]
[1718215631249,0.68,156.92,156.72,100.0]
[1718215631456,7.0743,156.91,156.72,100.0]
[1718215631672,2.3589,156.85,156.71,2.3609]
[1718215631880,0.17,156.86,156.65,4.7239]
[1718215632061,0.68,156.86,156.68,14.1503]
[1718215632382,27.63,156.84,156.68,14.1503]
[1718215632557,2.3602,156.77,156.63,2.3621]
[1718215632757,2.3606,156.74,156.61,6.374]
[1718215632975,0.34,156.76,156.61,6.374]
[1718215633275,2.3606,156.74,156.61,8.7365]
[1718215633459,2.5304,156.75,156.61,8.7365]
[1718215633655,2.36,156.78,156.64,2.362]
[1718215633883,37.46,156.88,156.62,104.7245]
[1718215633884,11.7956,156.84,156.62,104.7245]
[1718215634057,137.46,156.88,156.62,100.0]
[1718215634260,2.3604,156.76,156.61,6.374]
[1718215634464,2.3606,156.74,156.61,6.374]
[1718215634659,2.361,156.71,156.56,0.31937]
[1718215634901,4.7225,156.7,156.56,0.31937]
[1718215635051,4.7236,156.66,156.56,0.31937]
[1718215635399,4.7245,156.63,156.56,0.31937]
[1718215635701,0.51,156.62,156.56,0.31937]
[1718215635987,45.34,156.63,156.56,0.31937]
[1718215636197,2.5331,156.57,156.56,0.31937]
[1718215636790,2.7031,156.57,156.56,0.31937]
[1718215636999,2.7031,156.57,156.38,6.5529]
[1718215637000,0.51,156.57,156.4,2.3656]
[1718215637156,0.51,156.57,156.38,6.5529]
[1718215637157,2.364,156.51,156.38,6.5529]
[1718215637464,2.3647,156.47,156.32,18.94048616]
[1718215637654,0.17,156.51,156.33,2.3667]
[1718215637856,0.17,156.51,156.34,2.3665]
[1718215638081,2.3646,156.47,156.32,102.40658616]
[1718215638258,9.4568,156.5,156.32,0.03978616]
[1718215638458,0.34,156.52,156.34,2.3665]
[1718215638663,2.3648,156.46,156.32,0.03978616]
[1718215638883,0.17,156.47,156.32,0.03978616]
[1718215638884,2.3647,156.47,156.32,2.40658616]
[1718215639090,0.17,156.48,156.34,2.3666]
[1718215639386,0.17,156.51,156.32,0.03978616]
[1718215639559,9.31104245,156.57,156.36,100.0]
[1718215639758,36.77104245,156.59,156.4,100.0]
[1718215639989,6.182,156.62,156.46,100.0]
[1718215640209,2.3631,156.57,156.42,2.3654]
[1718215640409,9.4508,156.61,156.36,100.0]
[1718215640615,2.3643,156.49,156.34,100.0]
[1718215640918,27.46,156.55,156.34,100.0]
[1718215641091,27.46,156.55,156.36,100.0]
[1718215641411,2.3635,156.55,156.4,2.3656]
[1718215641616,9.4529,156.57,156.34,127.46]
[1718215641793,2.3638,156.53,156.34,127.46]
[1718215641989,100.0,156.6,156.32,100.03978616]
[1718215641990,7.091,156.54,156.32,100.03978616]
[1718215642237,9.4553,156.53,156.32,0.03978616]
[1718215642516,7.0928,156.5,156.32,0.03978616]
[1718215642692,27.46,156.51,156.32,0.03978616]
[1718215642887,0.17,156.49,156.32,0.03978616]
[1718215643087,2.3648,156.46,156.32,0.03978616]
[1718215643304,2.3646,156.48,156.32,0.03978616]
[1718215643494,0.17,156.49,156.32,100.03978616]
[1718215643688,20.17,156.5,156.32,100.03978616]
[1718215643919,2.3643,156.49,156.34,2.3664]
[1718215644123,2.364,156.51,156.37,2.3661]
[1718215644439,120.0,156.55,156.32,0.20978616]
[1718215644717,4.7307,156.43,156.32,0.03978616]
[1718215644892,2.3667,156.33,156.32,0.03978616]
[1718215645294,2.3664,156.36,156.32,0.03978616]
[1718215645490,0.17,156.37,156.32,0.03978616]
[1718215645724,20.51,156.38,156.32,0.03978616]
[1718215645893,2.3664,156.36,156.32,0.03978616]
[1718215646096,6.43968621,156.42,156.32,0.03978616]
[1718215646294,0.17,156.41,156.32,0.03978616]
[1718215646515,0.51,156.41,156.32,0.03978616]
[1718215646693,2.3658,156.4,156.32,0.03978616]
[1718215646890,6.43968621,156.42,156.32,0.03978616]
[1718215647112,2.3648,156.46,156.32,0.03978616]
[1718215647420,4.7302,156.44,156.32,0.03978616]
[1718215647616,2.3651,156.44,156.32,0.03978616]
[1718215647924,2.3655,156.42,156.32,0.03978616]
[1718215648106,6.43596488,156.47,156.32,0.03978616]
[1718215648533,4.7293,156.47,156.32,0.03978616]
[1718215648708,4.7309,156.42,156.32,0.03978616]
[1718215649022,4.7315,156.4,156.32,0.03978616]
[1718215649196,7.0982,156.38,156.32,0.03978616]
[1718215649402,0.17,156.37,156.32,0.03978616]
[1718215649711,27.46,156.42,156.32,0.03978616]
[1718215649888,20.0,156.41,156.32,0.03978616]
[1718215650096,2.3659,156.39,156.32,0.03978616]
[1718215650293,2.3664,156.36,156.32,0.03978616]
[1718215650539,2.3664,156.35,156.32,0.03978616]
[1718215650815,20.0,156.38,156.32,0.03978616]
[1718215651034,27.46,156.43,156.32,0.03978616]
[1718215651194,42.5763,156.48,156.32,0.03978616]
[1718215651597,100.0,156.44,156.32,0.03978616]
[1718215651819,4.7315,156.4,156.32,0.03978616]
[1718215651998,7.0972,156.4,156.32,0.03978616]
[1718215652330,119.1,156.43,156.32,0.03978616]
[1718215652331,100.0,156.41,156.32,0.03978616]
[1718215652489,2.3667,156.33,156.32,0.03978616]
[1718215652695,2.8767,156.33,156.14,100.0]
[1718215652922,2.8767,156.33,156.12,106.1514]
[1718215652923,0.17,156.31,156.12,106.1514]
[1718215653103,2.368,156.25,156.12,6.1514]
[1718215653612,2.3676,156.28,156.12,8.712437]
[1718215653796,20.0,156.29,156.12,113.452037]
[1718215654002,20.0,156.33,156.16,100.0]
[1718215654198,20.0,156.33,156.13,100.0]
[1718215654399,2.3666,156.34,156.16,4.7386]
[1718215654619,2.367,156.32,156.17,2.3691]
[1718215654832,100.0,156.38,156.13,100.0]
[1718215655125,32.1938,156.33,156.12,8.712437]
[1718215655332,9.4695,156.3,156.12,111.082337]
[1718215655626,27.46,156.32,156.12,8.712437]
[1718215655921,2.3677,156.27,156.12,6.1514]
[1718215656134,20.0,156.31,156.14,4.7392]
[1718215656330,20.0,156.31,156.13,109.4792]
[1718215656331,2.3676,156.28,156.13,102.3696]
[1718215656494,2.3676,156.28,156.12,6.1514]
[1718215656495,22.3672,156.31,156.16,100.0]
[1718215656698,27.46,156.4,156.22,2.3683]
[1718215656893,9.4618,156.42,156.16,9.477]
[1718215656894,19.1,156.42,156.23,100.0]
[1718215657127,19.1,156.42,156.2,7.1059]
[1718215657128,27.46,156.44,156.26,100.0]
[1718215657294,27.46,156.44,156.16,100.0]
[1718215657500,27.46,156.4,156.19,100.0]
[1718215657710,7.0974,156.4,156.2,100.51]
[1718215657926,2.3663,156.37,156.21,0.17]
[1718215658137,19.1,156.4,156.22,100.17]
[1718215658431,19.1,156.4,156.21,0.17]
[1718215658432,2.3665,156.35,156.21,0.17]
[1718215658678,4.7311,156.42,156.23,100.0]
[1718215658926,27.46,156.44,156.27,0.17]
[1718215659102,25.1776,156.45,156.27,20.68]
[1718215659299,12.4954247,156.45,156.24,100.17]
[1718215659515,19.5903247,156.45,156.25,22.7078]
[1718215659725,2.3653,156.43,156.29,2.3673]
[1718215659930,2.3652,156.43,156.28,2.5374]
[1718215660237,2.3657,156.41,156.29,0.17]
[1718215660399,6.4178247,156.45,156.31,0.17]
[1718215660608,42.5763,156.48,156.26,0.17]
[1718215660900,42.5763,156.48,156.19,9.475]
[1718215660901,27.46,156.43,156.19,4.7377]
[1718215661104,27.46,156.43,156.25,100.0]
[1718215661329,27.46,156.43,156.18,27.46]
[1718215661330,7.0945,156.46,156.27,2.3676]
[1718215661508,6.43120462,156.43,156.21,100.0]
[1718215661712,0.17,156.44,156.23,100.0]
[1718215661922,16.2048,156.59,156.32,100.0]
[1718215662102,34.5491,156.58,156.37,100.0]
[1718215662305,2.3639,156.52,156.38,22.366]
[1718215662528,6.43024174,156.56,156.35,4.7329]
[1718215662529,4.7275,156.53,156.35,100.0]
[1718215662738,16.5444,156.55,156.38,0.17]
[1718215662739,2.3639,156.52,156.38,0.17]
[1718215663054,2.3637,156.54,156.4,0.17]
[1718215663260,7.09,156.56,156.39,0.17]
[1718215663427,9.453,156.57,156.39,20.68]
[1718215663428,6.42917779,156.57,156.39,20.68]
[1718215663827,9.4535,156.56,156.34,100.0]
[1718215664050,2.3639,156.52,156.38,0.17]
[1718215664232,6.42917779,156.57,156.4,2.3656]
[1718215664558,6.42917779,156.57,156.41,100.34]
[1718215664740,2.3628,156.6,156.45,2.5349]
[1718215664935,2.3628,156.6,156.42,20.17]
[1718215664936,6.6547,156.61,156.43,0.17]
[1718215665242,34.1147,156.61,156.43,0.17]
[1718215665445,34.1147,156.61,156.43,0.34]
[1718215665761,34.1147,156.61,156.44,0.34]
[1718215665960,2.3626,156.61,156.46,2.5346]
[1718215666130,2.3626,156.61,156.44,0.34]
[1718215666131,2.3632,156.57,156.44,0.17]
[1718215666448,7.0874,156.62,156.42,0.17]
[1718215666747,2.3627,156.6,156.46,0.17]
[1718215666946,33.89251873,156.64,156.5,2.3641]
[1718215667149,33.89251873,156.64,156.47,20.0]
[1718215667330,33.89251873,156.64,156.48,0.51]
[1718215667331,2.3626,156.61,156.48,0.51]
[1718215667521,2.3624,156.62,156.48,0.51]
[1718215667729,8.79471873,156.64,156.49,2.3642]
[1718215667949,8.79471873,156.64,156.48,0.51]
[1718215667950,6.43251873,156.64,156.48,0.51]
[1718215668154,2.3625,156.62,156.48,0.51]
[1718215668852,6.43251873,156.64,156.48,0.51]
[1718215669149,6.43251873,156.64,156.51,2.3639]
[1718215669341,2.3624,156.62,156.49,0.17]
[1718215669540,6.43251873,156.64,156.5,102.5341]
[1718215669851,2.555417,156.68,156.54,2.3635]
[1718215670156,6.43263083,156.63,156.48,100.0]
[1718215670457,27.46,156.64,156.43,6.1698]
[1718215670650,27.46,156.64,156.35,15.413]
[1718215670651,4.7264,156.57,156.36,100.0]
[1718215670949,2.3641,156.51,156.36,2.3662]
[1718215671121,27.46,156.56,156.35,15.413]
[1718215671326,27.46,156.56,156.34,6.0323]
[1718215671327,32.1878,156.52,156.34,6.0323]
[1718215671527,2.3644,156.49,156.34,6.0323]
[1718215671729,0.17,156.5,156.34,6.0323]
[1718215671945,20.34,156.51,156.35,100.0]
[1718215671946,20.0,156.51,156.35,100.0]
[1718215672350,0.17,156.52,156.34,6.0323]
[1718215672548,20.0,156.53,156.36,100.0]
[1718215672853,2.3643,156.5,156.35,102.3664]
[1718215673029,20.17,156.53,156.35,100.0]
[1718215673229,20.0,156.53,156.35,100.0]
[1718215673450,20.0,156.53,156.36,100.0]
[1718215673753,11.8191,156.53,156.36,100.0]
[1718215673960,20.0,156.52,156.36,100.0]
[1718215674175,2.3642,156.5,156.37,0.68]
[1718215674666,2.3642,156.5,156.35,2.3663]
[1718215674667,0.34,156.51,156.34,6.0323]
[1718215674956,5.0682,156.51,156.34,6.0323]
[1718215675128,34.1855,156.5,156.34,6.0323]
[1718215675333,2.3647,156.47,156.33,100.0]
[1718215675534,0.34,156.51,156.33,100.0]
[1718215675741,0.17,156.45,156.28,6.374]
[1718215676057,0.17,156.39,156.17,134.0551]
[1718215676247,9.4651,156.37,156.22,2.559262]
[1718215676431,2.3662,156.37,156.22,4.927562]
[1718215676630,2.3659,156.39,156.24,2.3681]
[1718215676856,20.0,156.4,156.22,2.559262]
[1718215677159,0.17,156.37,156.17,106.5951]
[1718215677471,0.17,156.35,156.17,6.5951]
[1718215677660,2.3664,156.36,156.2,2.3687]
[1718215677971,20.0,156.36,156.2,100.0]
[1718215678153,0.17,156.37,156.18,100.0]
[1718215678337,2.3672,156.31,156.18,100.0]
[1718215678539,0.17,156.34,156.18,100.0]
[1718215678732,2.3665,156.35,156.18,100.0]
[1718215679038,0.34,156.37,156.2,2.3687]
[1718215679233,0.17,156.38,156.19,100.0]
[1718215679466,0.17,156.38,156.17,111.3333]
[1718215679670,2.3664,156.36,156.21,0.17]
[1718215679845,0.34,156.38,156.18,20.0]
[1718215680050,47.63,156.38,156.22,0.17]
[1718215680244,27.63,156.38,156.22,0.34]
[1718215680555,0.17,156.35,156.18,20.0]
[1718215680865,20.17,156.37,156.18,100.0]
[1718215681066,225.3331,156.46,156.27,2.3675]
[1718215681067,2.3653,156.43,156.27,2.3675]
[1718215681368,15.3331,156.46,156.23,100.0]
[1718215681547,6.43289712,156.42,156.2,106.374]
[1718215681735,6.43289712,156.42,156.24,100.0]
[1718215681939,2.3657,156.41,156.26,2.5378]
[1718215682136,25.53289712,156.42,156.25,0.34]
[1718215682336,6.43289712,156.42,156.25,0.34]
[1718215682544,6.43289712,156.42,156.27,100.0]
[1718215682752,6.43289712,156.42,156.29,100.17]
[1718215682956,29.8241,156.51,156.33,100.0]
[1718215683156,6.0637,156.52,156.33,100.0]
[1718215683157,6.0637,156.52,156.34,0.34]
[1718215683468,4.7288,156.49,156.3,0.17]
[1718215683641,6.43069414,156.5,156.37,0.17]
[1718215683836,15.3553,156.56,156.4,100.17]
[1718215684069,2.3638,156.53,156.41,0.17]
[1718215684368,22.01452729,156.56,156.43,0.17]
[1718215684547,6.65922729,156.56,156.41,0.17]
[1718215684751,9.02262729,156.56,156.42,100.0]
[1718215684961,9.02262729,156.56,156.41,0.34]
[1718215684962,2.3637,156.54,156.41,0.17]
[1718215685155,6.65922729,156.56,156.42,0.17]
[1718215685361,6.65922729,156.56,156.43,0.17]